bitfinex/quotes_BTCUSD_20240817
["timestamp","ask_amount","ask_price","bid_price","bid_amount"]
[1723873552597,0.64149763,59328.0,59327.0,0.0169064]
[1723873555830,0.54057899,59328.0,59327.0,0.0169064]
[1723873556036,0.75823868,59328.0,59327.0,0.0169064]
[1723873556226,0.78348132,59328.0,59327.0,0.0169064]
[1723873556452,0.75823535,59328.0,59327.0,0.0169064]
[1723873556657,0.65733302,59328.0,59327.0,0.0169064]
[1723873556854,0.78348132,59328.0,59327.0,0.0169064]
[1723873557264,0.65733302,59328.0,59327.0,0.0169064]
[1723873557465,0.78348132,59328.0,59327.0,0.0169064]
[1723873557670,0.91832432,59328.0,59327.0,0.0169064]
[1723873557882,0.78348132,59328.0,59327.0,0.0169064]
[1723873558754,0.78154625,59328.0,59327.0,0.0169064]
[1723873558906,0.78152438,59328.0,59327.0,0.0169064]
[1723873560305,0.65538408,59328.0,59327.0,0.0169064]
[1723873560482,0.78152438,59328.0,59327.0,0.0169064]
[1723873561130,0.57988408,59328.0,59327.0,0.0169064]
[1723873561948,0.58073532,59328.0,59327.0,0.0169064]
[1723873562348,0.70687693,59328.0,59327.0,0.0169064]
[1723873562760,0.58073532,59328.0,59327.0,0.0169064]
[1723873563162,0.70687693,59328.0,59327.0,0.0169064]
[1723873564538,0.58073532,59328.0,59327.0,0.0169064]
[1723873564943,0.70687693,59328.0,59327.0,0.0169064]
[1723873565463,0.58073532,59328.0,59327.0,0.0169064]
[1723873565812,0.70687693,59328.0,59327.0,0.0169064]
[1723873566389,0.38761846,59328.0,59327.0,0.0169064]
[1723873566589,0.70702699,59328.0,59327.0,0.0169064]
[1723873566971,0.84186999,59328.0,59327.0,0.0169064]
[1723873568189,0.71670443,59328.0,59327.0,0.0169064]
[1723873568380,0.71870443,59328.0,59327.0,0.0169064]
[1723873568579,0.71570443,59328.0,59327.0,0.0169064]
[1723873568934,0.84188824,59328.0,59327.0,0.0169064]
[1723873569332,0.84189891,59328.0,59327.0,0.0169064]
[1723873569738,0.71507023,59328.0,59327.0,0.0169064]
[1723873571003,0.3962959,59328.0,59327.0,0.0169064]
[1723873571144,0.71510233,59328.0,59327.0,0.0169064]
[1723873577492,0.86655337,59328.0,59327.0,0.0169064]
[1723873577902,0.86955337,59328.0,59327.0,0.0169064]
[1723873578310,0.71810233,59328.0,59327.0,0.0169064]
[1723873578928,0.71510233,59328.0,59327.0,0.0169064]
[1723873579369,0.71610233,59328.0,59327.0,0.0169064]
[1723873579580,0.3691053,59328.0,59327.0,0.0169064]
[1723873579780,0.3691053,59328.0,59327.0,0.1620064]
[1723873579781,0.4635053,59328.0,59327.0,0.1620064]
[1723873580385,0.46511232,59328.0,59327.0,0.1620064]
[1723873582669,0.59995532,59328.0,59327.0,0.1620064]
[1723873582869,0.77072137,59328.0,59327.0,0.0169064]
[1723873583076,0.8606843,59328.0,59327.0,0.0169064]
[1723873583711,0.68991825,59328.0,59327.0,1e-08]
[1723873584663,0.96160525,59328.0,59327.0,1e-08]
[1723873585042,1.37199225,59328.0,59327.0,1e-08]
[1723873585239,1.37399225,59328.0,59327.0,1e-08]
[1723873585444,1.77579775,59328.0,59327.0,1e-08]
[1723873585746,0.408536,59327.0,59326.0,0.0009075]
[1723873585946,1.34954757,59327.0,59326.0,0.0009075]
[1723873586773,1.35054757,59327.0,59326.0,0.0009075]
[1723873587177,1.34754757,59327.0,59326.0,0.0009075]
[1723873587426,1.34854757,59327.0,59326.0,0.0009075]
[1723873587632,1.35054757,59327.0,59326.0,0.0009075]
[1723873588984,1.62123857,59327.0,59326.0,0.0009075]
[1723873589309,1.62296329,59327.0,59326.0,0.0009075]
[1723873589521,1.69876329,59327.0,59326.0,0.0009075]
[1723873593813,0.97481962,59327.0,59326.0,0.0009075]
[1723873594014,1.29609332,59327.0,59326.0,0.0009075]
[1723873594218,1.70083673,59327.0,59326.0,0.0009075]
[1723873598635,1.70083673,59327.0,59326.0,1e-08]
[1723873599245,0.137859,59321.0,59320.0,0.07740001]
[1723873599449,0.5996342,59321.0,59320.0,0.07740001]
[1723873600473,0.6006342,59321.0,59320.0,0.07840001]
[1723873600683,0.8703522,59321.0,59320.0,0.07840001]
[1723873600885,0.8703522,59321.0,59320.0,0.001]
[1723873600886,0.6006342,59321.0,59320.0,0.001]
[1723873601095,0.71283275,59321.0,59320.0,0.001]
[1723873601368,0.6006342,59321.0,59320.0,0.001]
[1723873601805,0.6016342,59321.0,59320.0,0.001]
[1723873602209,0.6006342,59321.0,59320.0,0.001]
[1723873602538,0.002,59319.0,59318.0,0.1385]
[1723873602744,0.3232737,59319.0,59318.0,0.1385]
[1723873602939,0.36861545,59319.0,59318.0,0.1385]
[1723873603141,0.36961545,59319.0,59318.0,0.1385]
[1723873603344,0.52147023,59319.0,59318.0,0.1385]
[1723873603556,0.36961545,59319.0,59318.0,0.1385]
[1723873605341,0.52145181,59319.0,59318.0,0.1385]
[1723873605519,0.36961545,59319.0,59318.0,0.1385]
[1723873605723,0.49807485,59319.0,59318.0,0.1395]
[1723873606342,0.49807485,59319.0,59318.0,0.001]
[1723873606343,0.90566685,59319.0,59318.0,0.001]
[1723873606588,0.90266685,59319.0,59318.0,0.001]
[1723873606792,0.90566685,59319.0,59318.0,0.001]
[1723873607205,0.90366685,59319.0,59318.0,0.001]
[1723873607412,0.90169482,59319.0,59318.0,0.001]
[1723873607951,1.30156705,59319.0,59318.0,0.001]
[1723873608134,0.90369482,59319.0,59318.0,0.001]
[1723873608655,1.17342282,59319.0,59318.0,0.001]
[1723873609151,1.17542282,59319.0,59318.0,0.001]
[1723873609337,1.32102282,59319.0,59318.0,0.001]
[1723873609563,1.72089505,59319.0,59318.0,0.001]
[1723873610095,0.440625,59314.0,59313.0,0.0813]
[1723873610297,0.75918973,59314.0,59313.0,0.0813]
[1723873610499,0.89967171,59314.0,59313.0,0.0813]
[1723873610900,0.89667171,59314.0,59313.0,0.0813]
[1723873612153,0.89867171,59314.0,59313.0,0.0813]
[1723873613618,0.89867171,59314.0,59308.0,0.134887]
[1723873613619,0.002,59309.0,59308.0,0.134887]
[1723873613822,0.26875853,59309.0,59308.0,0.134887]
[1723873614036,0.14243698,59309.0,59308.0,0.134887]
[1723873614237,0.46100171,59309.0,59308.0,0.134887]
[1723873615049,0.46100171,59309.0,59306.0,0.134892]
[1723873615255,0.46100171,59309.0,59286.0,0.0029075]
[1723873615256,0.002,59306.0,59286.0,0.0009075]
[1723873615464,0.04801975,59306.0,59286.0,0.0009075]
[1723873615660,0.04801975,59306.0,59301.0,0.01000263]
[1723873616158,0.04801975,59306.0,59305.0,0.404684]
[1723873616360,0.04901975,59306.0,59305.0,0.404684]
[1723873616769,0.04901975,59306.0,59305.0,0.545184]
[1723873617305,0.09951865,59306.0,59305.0,0.545184]
[1723873618387,0.10051865,59306.0,59305.0,0.545184]
[1723873620729,0.10050682,59306.0,59305.0,0.545184]
[1723873621895,0.05001975,59306.0,59305.0,0.545184]
[1723873623747,0.10050682,59306.0,59305.0,0.545184]
[1723873623928,0.10050682,59306.0,59305.0,0.5460915]
[1723873624328,0.10049818,59306.0,59305.0,0.5460915]
[1723873624735,0.12573739,59306.0,59305.0,0.5460915]
[1723873624887,0.05001975,59306.0,59305.0,0.5460915]
[1723873625294,0.10049714,59306.0,59305.0,0.5460915]
[1723873628366,0.05001975,59306.0,59305.0,0.5460915]
[1723873629230,0.12674133,59306.0,59305.0,0.2763025]
[1723873629359,0.47814581,59306.0,59305.0,0.0009075]
[1723873629559,0.7081243,59306.0,59305.0,0.0009075]
[1723873629761,0.85170866,59306.0,59305.0,0.0009075]
[1723873629970,0.55834581,59306.0,59305.0,0.0009075]
[1723873633088,0.55564549,59306.0,59305.0,0.0009075]
[1723873634324,0.55464549,59306.0,59305.0,0.0009075]
[1723873634895,0.55564549,59306.0,59305.0,0.0009075]
[1723873635137,0.47544549,59306.0,59305.0,0.0009075]
[1723873635292,0.34055249,59306.0,59305.0,0.0816075]
[1723873636462,0.44143579,59306.0,59305.0,0.0816075]
[1723873636696,0.34055249,59306.0,59305.0,0.0816075]
[1723873637507,0.34162057,59306.0,59305.0,0.0816075]
[1723873638114,0.44252269,59306.0,59305.0,0.0816075]
[1723873638223,0.47651357,59306.0,59305.0,0.0816075]
[1723873638636,0.5774178,59306.0,59305.0,0.0816075]
[1723873639042,0.47651357,59306.0,59305.0,0.0816075]
[1723873640265,0.60263377,59306.0,59305.0,0.0816075]
[1723873643314,0.34162057,59306.0,59305.0,0.0816075]
[1723873643544,0.44056604,59306.0,59305.0,1.0894755]
[1723873643679,0.12473945,59306.0,59305.0,0.8196845]
[1723873643907,0.04901975,59306.0,59305.0,0.8196845]
[1723873644510,0.04901975,59306.0,59305.0,1.27105705]
[1723873644727,0.04801975,59306.0,59305.0,1.73524805]
[1723873644935,0.04801975,59306.0,59305.0,1.75824805]
[1723873645475,0.002,59306.0,59305.0,1.75824805]
[1723873645876,0.001,59306.0,59305.0,1.75824805]
[1723873646081,0.002,59306.0,59305.0,1.75824805]
[1723873646492,0.001,59306.0,59305.0,1.75824805]
[1723873646778,0.002,59306.0,59305.0,1.76524805]
[1723873647569,0.001,59306.0,59305.0,1.76524805]
[1723873647743,0.000825,59312.0,59311.0,1.088474]
[1723873648068,0.000825,59312.0,59311.0,1.38302854]
[1723873649115,0.001825,59312.0,59311.0,1.38902854]
[1723873649854,0.001825,59312.0,59311.0,1.39502854]
[1723873649855,0.002825,59312.0,59311.0,1.39502854]
[1723873650055,0.003825,59312.0,59311.0,1.39502854]
[1723873650571,0.002825,59312.0,59311.0,1.39502854]
[1723873653155,0.002825,59312.0,59311.0,1.40508458]
[1723873657384,0.005825,59312.0,59311.0,0.79646604]
[1723873657606,0.0517293,59312.0,59311.0,0.516646]
[1723873657805,0.12751151,59312.0,59311.0,0.516646]
[1723873658035,0.0517293,59312.0,59311.0,0.516646]
[1723873658671,0.12748903,59312.0,59311.0,0.516646]
[1723873659299,0.1274885,59312.0,59311.0,0.516646]
[1723873659685,0.0517293,59312.0,59311.0,0.516646]
[1723873659887,0.12748849,59312.0,59311.0,0.51486434]
[1723873660384,0.12748807,59312.0,59311.0,0.51486434]
[1723873660672,0.12748807,59312.0,59311.0,0.112]
[1723873661033,0.67602607,59312.0,59311.0,0.012]
[1723873661238,0.94578507,59312.0,59311.0,0.012]
[1723873661443,0.94578507,59312.0,59311.0,0.0129075]
[1723873661672,0.8700263,59312.0,59311.0,0.0129075]
[1723873662073,1.15724289,59312.0,59311.0,0.0129075]
[1723873663071,0.88748389,59312.0,59311.0,0.0129075]
[1723873669190,0.6002673,59312.0,59311.0,0.0129075]
[1723873669747,0.97076783,59312.0,59311.0,0.0129075]
[1723873669949,1.24452683,59312.0,59311.0,0.0129075]
[1723873670150,1.24252683,59312.0,59311.0,0.0129075]
[1723873670634,1.23952683,59312.0,59311.0,0.0069075]
[1723873671035,1.24452683,59312.0,59311.0,0.0069075]
[1723873671571,1.24352683,59312.0,59311.0,0.0009075]
[1723873671771,1.24552683,59312.0,59311.0,0.0009075]
[1723873671978,1.42322683,59312.0,59311.0,0.0009075]
[1723873672179,1.42522683,59312.0,59311.0,0.0009075]
[1723873672797,0.53208,59306.0,59305.0,0.0009075]
[1723873673002,1.22545018,59306.0,59305.0,0.0009075]
[1723873673208,1.27132634,59306.0,59305.0,0.0009075]
[1723873673948,1.27132634,59306.0,59305.0,0.0049075]
[1723873674410,1.27132634,59306.0,59305.0,0.0099075]
[1723873674615,1.27232634,59306.0,59305.0,0.0099075]
[1723873675483,1.35121151,59306.0,59305.0,0.0099075]
[1723873678229,1.35106542,59306.0,59305.0,0.0099075]
[1723873680397,1.00239325,59306.0,59305.0,0.0099075]
[1723873681949,1.00278671,59306.0,59305.0,0.0099075]
[1723873682299,1.02112911,59306.0,59305.0,0.0099075]
[1723873686195,1.02086649,59306.0,59305.0,0.0099075]
[1723873688740,1.29165349,59306.0,59305.0,0.0099075]
[1723873688940,1.46320803,59306.0,59305.0,0.0099075]
[1723873689175,1.61444079,59306.0,59305.0,0.0099075]
[1723873689366,1.61644079,59306.0,59305.0,0.0099075]
[1723873689564,1.61444079,59306.0,59305.0,0.0099075]
[1723873689767,1.61444079,59306.0,59305.0,0.0059075]
[1723873689968,1.61744079,59306.0,59305.0,0.0059075]
[1723873690174,1.61744079,59306.0,59305.0,0.0009075]
[1723873690175,1.61644079,59306.0,59305.0,0.0009075]
[1723873690503,1.61344079,59306.0,59305.0,0.0009075]
[1723873690699,1.61544079,59306.0,59305.0,0.0019075]
[1723873690869,1.62244079,59306.0,59305.0,0.0019075]
[1723873691468,1.29965349,59306.0,59305.0,0.0019075]
[1723873691674,1.30665349,59306.0,59305.0,0.0029075]
[1723873692036,1.29965349,59306.0,59305.0,0.0019075]
[1723873692321,1.45788625,59306.0,59305.0,0.0029075]
[1723873694008,1.30665349,59306.0,59305.0,0.0029075]
[1723873695017,1.30418106,59306.0,59305.0,0.0029075]
[1723873695243,1.45535598,59306.0,59305.0,0.0029075]
[1723873696782,0.89089406,59306.0,59305.0,0.0029075]
[1723873698172,1.04206898,59306.0,59305.0,0.0029075]
[1723873699029,1.31285598,59306.0,59305.0,0.0029075]
[1723873699229,1.16168106,59306.0,59305.0,0.0029075]
[1723873699434,1.0432038,59306.0,59305.0,0.0029075]
[1723873700035,1.3129908,59306.0,59305.0,0.0029075]
[1723873700154,1.52086259,59306.0,59305.0,0.0029075]
[1723873702748,1.25107559,59306.0,59305.0,0.0029075]
[1723873702951,0.89189406,59306.0,59305.0,0.0029075]
[1723873703149,1.16168106,59306.0,59305.0,0.0029075]
[1723873703517,1.33175284,59306.0,59305.0,0.0029075]
[1723873703641,1.69093437,59306.0,59305.0,0.0029075]
[1723873703846,1.69272295,59306.0,59305.0,0.0029075]
[1723873704231,1.42293595,59306.0,59305.0,0.0029075]
[1723873704450,1.33350723,59306.0,59305.0,0.0029075]
[1723873704855,1.42298175,59306.0,59305.0,0.0029075]
[1723873705301,1.25247856,59306.0,59305.0,0.0029075]
[1723873705453,0.89326284,59306.0,59305.0,0.0029075]
[1723873706917,1.16304984,59306.0,59305.0,0.0029075]
[1723873707217,1.52226556,59306.0,59305.0,0.0029075]
[1723873708086,1.25247856,59306.0,59305.0,0.0029075]
[1723873708287,0.89326284,59306.0,59305.0,0.0029075]
[1723873708490,1.16353453,59306.0,59305.0,0.0029075]
[1723873708703,1.52332454,59306.0,59305.0,0.0029075]
[1723873709265,1.25353754,59306.0,59305.0,0.0029075]
[1723873709465,0.89574753,59306.0,59305.0,0.0029075]
[1723873709669,1.16353453,59306.0,59305.0,0.0029075]
[1723873710278,1.52332454,59306.0,59305.0,0.0029075]
[1723873711001,1.52532454,59306.0,59305.0,0.0029075]
[1723873711204,1.52332454,59306.0,59305.0,0.0029075]
[1723873711406,1.52532454,59306.0,59305.0,0.0029075]
[1723873711835,1.70302454,59306.0,59305.0,0.0029075]
[1723873712038,1.52332454,59306.0,59305.0,0.0029075]
[1723873712366,1.25353754,59306.0,59305.0,0.0029075]
[1723873712568,0.89374753,59306.0,59305.0,0.0029075]
[1723873712935,1.16353453,59306.0,59305.0,0.0029075]
[1723873713088,1.25353754,59306.0,59305.0,0.0029075]
[1723873713299,1.16353453,59306.0,59305.0,0.0029075]
[1723873713476,1.52332454,59306.0,59305.0,0.0029075]
[1723873720397,1.69487908,59306.0,59305.0,0.0029075]
[1723873721487,1.69687908,59306.0,59305.0,0.0029075]
[1723873721700,0.406694,59304.0,59303.0,0.0009075]
[1723873721965,0.68714297,59304.0,59303.0,0.0009075]
[1723873722212,0.75133673,59304.0,59303.0,0.0009075]
[1723873722708,0.75233673,59304.0,59303.0,0.0009075]
[1723873722947,0.75633673,59304.0,59303.0,0.0009075]
[1723873724220,0.76133673,59304.0,59303.0,0.0009075]
[1723873725475,0.9210481,59304.0,59303.0,0.0009075]
[1723873726081,0.9220481,59304.0,59303.0,0.0009075]
[1723873728240,0.76233673,59304.0,59303.0,0.0009075]
[1723873729617,0.76433673,59304.0,59303.0,0.0009075]
[1723873730905,1.03413273,59304.0,59303.0,0.0009075]
[1723873739180,1.03113273,59304.0,59303.0,0.0009075]
[1723873740459,0.76133673,59304.0,59303.0,0.0009075]
[1723873740655,0.9221305,59304.0,59303.0,0.0009075]
[1723873740859,0.76133673,59304.0,59303.0,0.0009075]
[1723873742189,0.76233673,59304.0,59303.0,0.0009075]
[1723873742411,0.76133673,59304.0,59303.0,0.0009075]
[1723873742615,0.90593673,59304.0,59303.0,0.0009075]
[1723873742830,1.17573273,59304.0,59303.0,0.0009075]
[1723873743032,1.53352274,59304.0,59303.0,0.0009075]
[1723873743648,1.26372674,59304.0,59303.0,0.0009075]
[1723873743885,1.25989084,59304.0,59303.0,0.0009075]
[1723873744090,1.26189084,59304.0,59303.0,0.0009075]
[1723873744293,0.90603538,59304.0,59303.0,0.0009075]
[1723873744419,1.17583138,59304.0,59303.0,0.0009075]
[1723873744864,1.53368684,59304.0,59303.0,0.0009075]
[1723873745217,1.52968684,59304.0,59303.0,0.0009075]
[1723873745427,0.136904,59301.0,59300.0,0.0009075]
[1723873745682,0.50985162,59301.0,59300.0,0.0009075]
[1723873745875,0.57394095,59301.0,59300.0,0.0009075]
[1723873746623,0.84374995,59301.0,59300.0,0.0009075]
[1723873746837,0.84474995,59301.0,59300.0,0.0009075]
[1723873747064,0.84574995,59301.0,59300.0,0.0009075]
[1723873747699,0.84674995,59301.0,59300.0,0.0009075]
[1723873748543,0.84605449,59301.0,59300.0,0.0009075]
[1723873748752,1.20317732,59301.0,59300.0,0.0009075]
[1723873748955,1.00769432,59301.0,59300.0,0.0009075]
[1723873750688,1.27750332,59301.0,59300.0,0.0009075]
[1723873750925,1.69651232,59301.0,59300.0,0.0009075]
[1723873751137,2.05563515,59301.0,59300.0,0.0009075]
[1723873751543,2.30469441,59301.0,59300.0,0.0009075]
[1723873751749,2.05563515,59301.0,59300.0,0.0009075]
[1723873751962,2.30469441,59301.0,59300.0,0.0009075]
[1723873752169,2.05163515,59301.0,59300.0,0.0009075]
[1723873752379,1.88999532,59301.0,59300.0,0.0009075]
[1723873754248,1.89199532,59301.0,59300.0,0.0009075]
[1723873755440,1.89199532,59301.0,59299.0,0.00026124]
[1723873755441,0.706535,59300.0,59299.0,0.00026124]
[1723873755645,1.34350999,59300.0,59299.0,0.00026124]
[1723873755848,1.40774398,59300.0,59299.0,0.00026124]
[1723873757375,1.40774398,59300.0,59299.0,0.14346124]
[1723873757574,0.37508615,59300.0,59299.0,0.14346124]
[1723873757957,0.54586255,59300.0,59299.0,0.14346124]
[1723873758165,0.54986255,59300.0,59299.0,0.14346124]
[1723873758605,0.37908615,59300.0,59299.0,0.14346124]
[1723873759018,0.38208615,59300.0,59299.0,0.14346124]
[1723873759329,0.37908615,59300.0,59299.0,0.14346124]
[1723873759534,0.37508615,59300.0,59299.0,0.27837024]
[1723873759759,0.35208615,59300.0,59299.0,0.54818924]
[1723873759982,0.35208615,59300.0,59299.0,0.81800824]
[1723873761142,0.34808615,59300.0,59299.0,0.81800824]
[1723873761695,0.34508615,59300.0,59299.0,0.81800824]
[1723873762301,0.34308615,59300.0,59299.0,0.81800824]
[1723873762545,0.46955415,59300.0,59299.0,1.08782724]
[1723873762913,0.34308615,59300.0,59299.0,1.08782724]
[1723873763328,0.34508615,59300.0,59299.0,1.08782724]
[1723873764363,0.44623373,59300.0,59299.0,1.08782724]
[1723873764796,0.44423373,59300.0,59299.0,1.08782724]
[1723873765250,0.44423373,59300.0,59299.0,1.09778053]
[1723873766106,0.06523399,59300.0,59299.0,1.09778053]
[1723873766310,0.34765786,59300.0,59299.0,1.09778053]
[1723873767544,0.06523399,59300.0,59299.0,1.09778053]
[1723873768517,0.14106472,59300.0,59299.0,1.09778053]
[1723873768717,0.14306472,59300.0,59299.0,1.09778053]
[1723873768949,0.14306472,59300.0,59299.0,1.26933507]
[1723873769105,0.14388972,59300.0,59299.0,1.26933507]
[1723873770461,0.14488972,59300.0,59299.0,1.27433507]
[1723873771782,0.14588972,59300.0,59299.0,1.27933507]
[1723873772504,0.07005899,59300.0,59299.0,1.27933507]
[1723873772705,0.14588972,59300.0,59299.0,1.27933507]
[1723873773325,0.07005899,59300.0,59299.0,1.27933507]
[1723873774432,0.07005899,59300.0,59299.0,1.26938178]
[1723873774625,0.14588972,59300.0,59299.0,1.26938178]
[1723873779778,0.14584492,59300.0,59299.0,1.26938178]
[1723873780792,0.07005899,59300.0,59299.0,1.26938178]
[1723873781033,0.12058088,59300.0,59299.0,1.26938178]
[1723873781560,0.12058088,59300.0,59299.0,0.41498924]
[1723873781786,0.17109487,59300.0,59299.0,0.14517024]
[1723873782237,0.45169851,59300.0,59299.0,0.14517024]
[1723873782609,0.45169765,59300.0,59299.0,0.14517024]
[1723873782928,0.34997037,59300.0,59299.0,0.14517024]
[1723873783126,0.34997037,59300.0,59299.0,0.01026124]
[1723873783331,0.63067737,59300.0,59299.0,0.01026124]
[1723873784283,0.49577037,59300.0,59299.0,0.01026124]
[1723873784502,0.49299062,59300.0,59299.0,0.01026124]
[1723873787368,0.58739062,59300.0,59299.0,0.01026124]
[1723873787570,0.52119062,59300.0,59299.0,0.01026124]
[1723873787783,0.44159062,59300.0,59299.0,0.01026124]
[1723873788877,0.44218928,59300.0,59299.0,0.01026124]
[1723873791886,0.34778928,59300.0,59299.0,0.01026124]
[1723873792092,0.44218928,59300.0,59299.0,0.41498924]
[1723873792292,0.44218928,59300.0,59299.0,0.14517024]
[1723873793297,0.44369692,59300.0,59299.0,0.14517024]
[1723873795007,0.44369692,59300.0,59299.0,0.49788924]
[1723873796515,0.34929692,59300.0,59299.0,1.27568178]
[1723873796690,0.17112756,59300.0,59299.0,1.27568178]
[1723873796893,0.07005899,59300.0,59299.0,1.27568178]
[1723873797074,0.14585814,59300.0,59299.0,1.27568178]
[1723873797740,0.07005899,59300.0,59299.0,1.27568178]
[1723873798362,0.14586879,59300.0,59299.0,1.27568178]
[1723873800521,0.17113872,59300.0,59299.0,1.27568178]
[1723873800730,0.35259171,59300.0,59299.0,1.27568178]
[1723873801125,0.35256061,59300.0,59299.0,1.27568178]
[1723873801333,0.45367258,59300.0,59299.0,1.27568178]
[1723873801535,0.35256061,59300.0,59299.0,1.27568178]
[1723873802158,0.45367258,59300.0,59299.0,1.00586278]
[1723873802372,0.35256061,59300.0,59299.0,1.00586278]
[1723873803440,0.47895058,59300.0,59299.0,1.00586278]
[1723873805721,0.47895058,59300.0,59299.0,0.14517024]
[1723873805938,0.35256061,59300.0,59299.0,0.14517024]
[1723873807180,0.50422857,59300.0,59299.0,0.01026124]
[1723873808123,0.35256061,59300.0,59299.0,0.01026124]
[1723873808298,0.44335327,59300.0,59299.0,0.01026124]
[1723873808921,0.35256061,59300.0,59299.0,0.01026124]
[1723873809135,0.47938893,59300.0,59299.0,0.01026124]
[1723873809968,0.47462858,59300.0,59299.0,0.01026124]
[1723873810805,0.60953558,59300.0,59299.0,0.01026124]
[1723873811559,0.87934958,59300.0,59299.0,0.01026124]
[1723873811779,1.05106471,59300.0,59299.0,0.01026124]
[1723873811984,1.05006471,59300.0,59299.0,0.01026124]
[1723873812183,1.23632981,59300.0,59299.0,0.01026124]
[1723873812545,0.87834958,59300.0,59299.0,0.00526124]
[1723873812755,1.21258061,59300.0,59299.0,0.00526124]
[1723873812887,1.56956084,59300.0,59299.0,0.00526124]
[1723873813084,1.29874475,59300.0,59299.0,0.00026124]
[1723873813286,0.94176452,59300.0,59299.0,0.00026124]
[1723873813714,0.77108956,59300.0,59299.0,0.00026124]
[1723873814115,0.77208956,59300.0,59299.0,0.00026124]
[1723873814318,0.6054339,59300.0,59299.0,0.00026124]
[1723873814736,0.6144339,59300.0,59299.0,0.00026124]
[1723873814938,1.05489982,59300.0,59299.0,0.00026124]
[1723873815142,0.6094339,59300.0,59299.0,0.00026124]
[1723873815341,0.4745269,59300.0,59299.0,0.00026124]
[1723873815554,0.4775269,59300.0,59299.0,0.00026124]
[1723873815968,0.4735269,59300.0,59299.0,0.00026124]
[1723873816381,0.4765269,59300.0,59299.0,0.00026124]
[1723873816587,0.4735269,59300.0,59299.0,0.00026124]
[1723873816761,0.3269269,59300.0,59299.0,0.13517024]
[1723873816963,0.4233269,59300.0,59299.0,0.13517024]
[1723873817347,0.4283269,59300.0,59299.0,0.13517024]
[1723873818287,0.4233269,59300.0,59299.0,0.13517024]
[1723873818487,0.4253269,59300.0,59299.0,0.13517024]
[1723873819028,0.42521693,59300.0,59299.0,0.13517024]
[1723873820532,0.30137643,59300.0,59299.0,0.13517024]
[1723873820757,0.57690605,59300.0,59299.0,0.13517024]
[1723873822100,0.57690605,59300.0,59299.0,0.00026124]
[1723873822101,0.42521693,59300.0,59299.0,0.00026124]
[1723873822314,0.48506593,59300.0,59299.0,0.00026124]
[1723873823191,0.61997293,59300.0,59299.0,0.00026124]
[1723873823404,0.62023269,59300.0,59299.0,0.00026124]
[1723873823823,1.23981169,59300.0,59299.0,0.00026124]
[1723873824237,1.24281169,59300.0,59299.0,0.00026124]
[1723873824856,1.59771676,59300.0,59299.0,0.00026124]
[1723873825064,1.59471676,59300.0,59299.0,0.00026124]
[1723873825276,1.59471676,59300.0,59297.0,0.0009075]
[1723873825277,0.406734,59298.0,59297.0,0.0009075]
[1723873825478,0.82332338,59298.0,59297.0,0.0009075]
[1723873825879,0.87077508,59298.0,59297.0,0.0009075]
[1723873826078,1.033747,59298.0,59297.0,0.0009075]
[1723873826278,1.20435166,59298.0,59297.0,0.0009075]
[1723873827283,1.47517466,59298.0,59297.0,0.0009075]
[1723873827510,1.83007973,59298.0,59297.0,0.0009075]
[1723873828727,1.83207973,59298.0,59297.0,0.0009075]
[1723873829061,1.83007973,59298.0,59297.0,0.0009075]
[1723873829711,1.83307973,59298.0,59297.0,0.0009075]
[1723873830391,1.83607973,59298.0,59297.0,0.0009075]
[1723873831474,1.66547507,59298.0,59297.0,0.0009075]
[1723873832430,1.65876786,59298.0,59297.0,0.0009075]
[1723873833758,1.66276786,59298.0,59297.0,0.0009075]
[1723873835221,1.6630895,59298.0,59297.0,0.0009075]
[1723873837088,1.66300695,59298.0,59297.0,0.0009075]
[1723873837293,1.50003503,59298.0,59297.0,0.0009075]
[1723873839206,1.67054161,59298.0,59297.0,0.0009075]
[1723873839420,1.66654161,59298.0,59297.0,0.0009075]
[1723873839839,1.66854161,59298.0,59297.0,0.0009075]
[1723873840046,1.84009615,59298.0,59297.0,0.0009075]
[1723873841105,2.11191915,59298.0,59297.0,0.0009075]
[1723873841316,2.11191915,59298.0,59290.0,0.0009075]
[1723873841317,0.712637,59291.0,59290.0,0.0009075]
[1723873841530,1.43101267,59291.0,59290.0,0.0009075]
[1723873841985,1.94272451,59291.0,59290.0,0.0009075]
[1723873842201,2.1131731,59291.0,59290.0,0.0009075]
[1723873842412,2.03712451,59291.0,59290.0,0.0009075]
[1723873843045,1.41289818,59291.0,59290.0,0.0009075]
[1723873843258,2.04546516,59291.0,59290.0,0.0009075]
[1723873843684,2.03946516,59291.0,59290.0,0.0009075]
[1723873844246,2.04546516,59291.0,59290.0,0.0009075]
[1723873844655,2.03946516,59291.0,59290.0,0.0009075]
[1723873844900,2.05246516,59291.0,59290.0,0.0009075]
[1723873845244,2.04146516,59291.0,59290.0,0.0009075]
[1723873845448,2.03546516,59291.0,59290.0,0.0009075]
[1723873845788,2.04246516,59291.0,59290.0,0.0009075]
[1723873846668,2.05046516,59291.0,59290.0,0.0009075]
[1723873847488,2.04246516,59291.0,59290.0,0.0009075]
[1723873847694,2.21287911,59291.0,59290.0,0.0009075]
[1723873847908,2.21487911,59291.0,59290.0,0.0009075]
[1723873848127,2.21484052,59291.0,59290.0,0.0009075]
[1723873848345,2.22384052,59291.0,59290.0,0.0009075]
[1723873848569,2.03746516,59291.0,59290.0,0.0009075]
[1723873848803,2.04746516,59291.0,59290.0,0.0009075]
[1723873849207,2.03946516,59291.0,59290.0,0.0009075]
[1723873849655,2.04946516,59291.0,59290.0,0.0009075]
[1723873850519,2.04384031,59291.0,59290.0,0.0009075]
[1723873850729,2.05484031,59291.0,59290.0,0.0009075]
[1723873851171,2.05084031,59291.0,59290.0,0.0009075]
[1723873851380,0.407809,59287.0,59286.0,0.00028966]
[1723873851582,0.67889206,59287.0,59286.0,0.00028966]
[1723873851779,0.71524191,59287.0,59286.0,0.00028966]
[1723873853207,0.80964191,59287.0,59286.0,0.00028966]
[1723873853319,1.31641445,59287.0,59286.0,0.00028966]
[1723873854570,1.07710098,59287.0,59286.0,0.00028966]
[1723873854778,1.07710098,59287.0,59286.0,0.14408966]
[1723873854779,0.72724191,59287.0,59286.0,0.14408966]
[1723873855970,1.07710098,59287.0,59286.0,0.14408966]
[1723873856189,0.72724191,59287.0,59286.0,0.14408966]
[1723873858028,0.82164191,59287.0,59286.0,0.14408966]
[1723873862829,1.07899946,59287.0,59286.0,0.14408966]
[1723873863028,0.82255839,59287.0,59286.0,0.14408966]
[1723873863828,1.17339946,59287.0,59286.0,0.14408966]
[1723873864435,0.82255839,59287.0,59286.0,0.14408966]
[1723873865840,0.82255839,59287.0,59286.0,0.07918966]
[1723873867567,0.82230929,59287.0,59286.0,0.00028966]
[1723873867767,0.98691252,59287.0,59286.0,0.00028966]
[1723873867940,1.33751965,59287.0,59286.0,0.00028966]
[1723873868342,1.50801869,59287.0,59286.0,0.00028966]
[1723873868546,1.77789169,59287.0,59286.0,0.00028966]
[1723873871584,1.50801869,59287.0,59286.0,0.00028966]
[1723873871738,1.15841156,59287.0,59286.0,0.00028966]